fUSD/lending_fUSD_20251017
["ID","MTS","AMOUNT","RATE_DAILY","PERIOD"]
[391635503,1760712657299,-151.0,0.000249,7]
[391635504,1760712657309,-508.923238,0.000249,7]
[391635505,1760712657318,-220.759184,0.000249,7]
[391635506,1760712657327,-508.923238,0.000249,7]
[391635507,1760712657337,-220.759184,0.000249,7]
[391635508,1760712657346,-508.923238,0.000249,7]
[391635509,1760712657355,-220.759184,0.000249,7]
[391635510,1760712657364,-220.759184,0.000249,7]
[391635511,1760712657373,-151.0,0.000249,7]
[391635512,1760712657382,-151.0,0.000249,7]
[391635513,1760712657391,-151.0,0.000249,7]
[391635514,1760712657400,-151.0,0.000249,7]
[391635515,1760712657409,-151.0,0.000249,7]
[391635516,1760712657417,-165.472857,0.000249,7]
[391635517,1760712657426,-165.472857,0.000249,7]
[391635518,1760712657435,-561.150445,0.000249,7]
[391635519,1760712657444,-165.472857,0.000249,7]
[391635520,1760712657453,-561.150445,0.000249,7]
[391635521,1760712657462,-165.472857,0.000249,7]
[391635522,1760712657471,-561.150445,0.000249,7]
[391635523,1760712657480,-151.0,0.000249,7]
[391635524,1760712657489,-151.0,0.000249,7]
[391635525,1760712657498,-561.150445,0.000249,7]
[391635526,1760712657507,-151.0,0.000249,7]
[391635527,1760712657516,-151.0,0.000249,7]
[391635528,1760712657525,-151.0,0.000249,7]
[391635529,1760712657535,-206.007068,0.000249,7]
[391635530,1760712657544,-151.0,0.000249,7]
[391635531,1760712657554,-151.0,0.000249,7]
[391635532,1760712657564,-151.0,0.000249,7]
[391635533,1760712657575,-151.0,0.000249,7]
[391635534,1760712657589,-177.154163,0.000249,7]
[391635535,1760712657599,-151.0,0.000249,7]
[391635536,1760712657609,-151.0,0.000249,7]
[391635537,1760712657624,-151.0,0.000249,7]
[391635538,1760712657633,-151.0,0.000249,7]
[391635539,1760712657643,-151.0,0.000249,7]
[391635540,1760712657653,-681.76,0.0002493,2]
[391635541,1760712657662,-681.76,0.0002493,2]
[391635542,1760712657671,-586.19,0.0002493,2]
[391635543,1760712657681,-586.19,0.0002493,2]
[391635544,1760712657691,-609.49,0.0002493,2]
[391635545,1760712657701,-609.49,0.0002493,2]
[391635546,1760712657710,-816.0,0.0002493,2]
[391635547,1760712657720,-816.0,0.0002493,2]
[391635548,1760712657729,-500.0,0.00024931,2]
[391635549,1760712657738,-221.70526093,0.00024931,2]
[391635550,1760712657748,-500.0,0.00024931,2]
[391635551,1760712657757,-500.0,0.00024931,2]
[391635552,1760712657766,-522.4,0.00024931,2]
[391635553,1760712657775,-500.0,0.00024931,2]
[391635554,1760712657785,-869.21,0.00024931,2]
[391635555,1760712657794,-1021.91,0.00024931,2]
[391635556,1760712657802,-500.0,0.00024931,2]
[391635557,1760712657811,-500.0,0.00024931,2]
[391635558,1760712657821,-500.0,0.00024931,2]
[391635559,1760712657829,-500.0,0.00024931,2]
[391635560,1760712657844,-500.0,0.00024931,2]
[391635561,1760712657853,-500.0,0.00024931,2]
[391635562,1760712657862,-537.34,0.00024931,2]
[391635563,1760712657871,-500.0,0.00024931,2]
[391635564,1760712657880,-280.02690238,0.00024931,2]
[391635565,1760712657889,-1474.93,0.00024931,2]
[391635566,1760712657898,-666.77,0.00024931,2]
[391635567,1760712657907,-500.0,0.00024931,2]
[391635568,1760712657916,-500.0,0.00024931,2]
[391635569,1760712657926,-500.0,0.00024931,2]
[391635570,1760712657938,-500.0,0.00024931,2]
[391635571,1760712657947,-500.0,0.00024931,2]
[391635572,1760712657955,-500.0,0.00024931,2]
[391635573,1760712657964,-635.0455582,0.00024931,2]
[391635574,1760712657973,-500.0,0.00024931,2]
[391635575,1760712657982,-488.7851147,0.00024931,2]
[391635576,1760712657991,-934.67,0.00024931,2]
[391635577,1760712658000,-500.0,0.00024931,2]
[391635578,1760712658009,-1074.19,0.00024931,2]
[391635579,1760712658018,-500.0,0.00024931,2]
[391635580,1760712658027,-503.28506059,0.00024931,2]
[391635581,1760712658036,-363.70070873,0.00024931,2]
[391635582,1760712658044,-365.05913675,0.00024931,2]
[391635583,1760712658053,-371.99748799,0.00024931,2]
[391635584,1760712658062,-500.0,0.00024931,2]
[391635585,1760712658071,-500.0,0.00024931,2]
[391635586,1760712658080,-500.0,0.00024931,2]
[391635587,1760712658091,-542.22415272,0.00024931,2]
[391635588,1760712658100,-2000.0,0.00024931,7]
[391635589,1760712658109,-636.50035235,0.00024931,2]
[391635590,1760712658118,-500.0,0.00024931,2]
[391635591,1760712658127,-500.0,0.00024931,2]
[391635592,1760712658135,-500.0,0.00024931,2]
[391635593,1760712658145,-500.0,0.00024931,2]
[391635594,1760712658154,-502.05235752,0.00024931,2]
[391635595,1760712658162,-500.0,0.00024931,2]
[391635596,1760712658172,-510.54924968,0.00024931,2]
[391635597,1760712658180,-500.0,0.00024931,2]
[391635598,1760712658189,-500.0,0.00024931,2]
[391635599,1760712658198,-501.76612803,0.00024931,2]
[391635600,1760712658207,-500.0,0.00024931,2]
[391635601,1760712658217,-504.61575739,0.00024931,2]
[391635602,1760712658226,-500.0,0.00024931,2]
[391635603,1760712658235,-500.0,0.00024931,2]
[391635604,1760712658244,-500.0,0.00024931,2]
[391635605,1760712658254,-501.85780989,0.00024931,2]
[391635606,1760712658263,-500.0,0.00024931,2]
[391635607,1760712658272,-232.62267185,0.00024931,2]
[391635608,1760712658281,-500.0,0.00024931,2]
[391635609,1760712658290,-502.30264399,0.00024931,2]
[391635610,1760712658299,-577.98717454,0.00024931,2]
[391635611,1760712658309,-500.0,0.00024931,2]
[391635612,1760712658318,-500.0,0.00024931,2]
[391635613,1760712658327,-482.14728696,0.00024931,2]
[391635614,1760712658339,-500.0,0.00024931,2]
[391635615,1760712658349,-500.0,0.00024931,2]
[391635616,1760712658359,-500.0,0.00024931,2]
[391635617,1760712658368,-384.51379986,0.00024931,2]
[391635618,1760712658378,-500.0,0.00024931,2]
[391635619,1760712658387,-500.0,0.00024931,2]
[391635620,1760712658397,-556.56304205,0.00024931,2]
[391635621,1760712658407,-500.0,0.00024931,2]
[391635622,1760712658417,-500.0,0.00024931,2]
[391635623,1760712658428,-151.0,0.00024931,7]
[391635624,1760712658437,-500.0,0.00024931,2]
[391635625,1760712658447,-151.0,0.00024931,7]
[391635626,1760712658457,-499.28718404,0.00024931,2]
[391635627,1760712658467,-500.0,0.00024931,2]
[391635628,1760712658476,-500.0,0.00024931,2]
[391635629,1760712658486,-151.0,0.00024931,7]
[391635630,1760712658496,-500.0,0.00024931,2]
[391635631,1760712658506,-501.65309543,0.00024931,2]
[391635632,1760712658515,-500.0,0.00024931,2]
[391635633,1760712658524,-500.0,0.00024931,2]
[391635634,1760712658534,-500.0,0.00024931,2]
[391635635,1760712658544,-500.0,0.00024931,2]
[391635636,1760712658554,-510.82111252,0.00024931,2]
[391635637,1760712658563,-502.07964438,0.00024931,2]
[391635638,1760712658573,-500.0,0.00024931,2]
[391635639,1760712658584,-471.32456643,0.00024931,2]
[391635640,1760712658594,-500.0,0.00024931,2]
[391635641,1760712658603,-500.43783805,0.00024931,2]
[391635642,1760712658618,-500.0,0.00024931,2]
[391635643,1760712658628,-500.0,0.00024931,2]
[391635644,1760712658638,-500.0,0.00024931,2]
[391635645,1760712658647,-422.68206562,0.00024931,2]
[391635646,1760712658659,-500.0,0.00024931,2]
[391635647,1760712658668,-500.0,0.00024931,2]
[391635648,1760712658678,-500.0,0.00024931,2]
[391635649,1760712658688,-500.0,0.00024931,2]
[391635650,1760712658698,-519.30637899,0.00024931,2]
[391635651,1760712658708,-500.0,0.00024931,2]
[391635652,1760712658718,-500.0,0.00024931,2]
[391635653,1760712658728,-500.0,0.00024931,2]
[391635654,1760712658738,-500.0,0.00024931,2]
[391635655,1760712658748,-151.0,0.00024931,7]
[391635656,1760712658758,-500.0,0.00024931,2]
[391635657,1760712658767,-500.0,0.00024931,2]
[391635658,1760712658778,-151.0,0.00024931,7]
[391635659,1760712658787,-151.0,0.00024931,7]
[391635660,1760712658797,-151.0,0.00024931,7]
[391635661,1760712658806,-500.0,0.00024931,2]
[391635662,1760712658816,-500.0,0.00024931,2]
[391635663,1760712658826,-624.92222699,0.00024931,2]
[391635664,1760712658838,-500.0,0.00024931,2]
[391635665,1760712658848,-283.25506108,0.00024931,2]
[391635666,1760712658858,-490.42922464,0.00024931,2]
[391635667,1760712658868,-500.0,0.00024931,2]
[391635668,1760712658878,-521.58605025,0.00024931,2]
[391635669,1760712658888,-154.92737537,0.00024931,2]
[391635670,1760712658898,-500.0,0.00024931,2]
[391635671,1760712658907,-588.86803805,0.00024931,2]
[391635672,1760712658918,-597.03719207,0.00024931,2]
[391635673,1760712658928,-500.0,0.00024931,2]
[391635674,1760712658938,-151.0,0.00024931,7]
[391635675,1760712658948,-500.0,0.00024931,2]
[391635676,1760712658958,-543.57540057,0.00024931,2]
[391635677,1760712658969,-500.0,0.00024931,2]
[391635678,1760712658978,-151.0,0.00024931,7]
[391635679,1760712658989,-500.0,0.00024931,2]
[391635680,1760712658999,-500.0,0.00024931,2]
[391635681,1760712659008,-500.0,0.00024931,2]
[391635682,1760712659019,-500.0,0.00024931,2]
[391635683,1760712659028,-1458.22,0.00024931,2]
[391635684,1760712659038,-500.0,0.00024931,2]
[391635685,1760712659048,-500.0,0.00024931,2]
[391635686,1760712659058,-336.00169713,0.00024931,2]
[391635687,1760712659068,-500.0,0.00024931,2]
[391635688,1760712659078,-500.0,0.00024931,2]
[391635689,1760712659092,-500.0,0.00024931,2]
[391635690,1760712659102,-503.59161204,0.00024931,2]
[391635691,1760712659112,-151.0,0.00024931,7]
[391635692,1760712659122,-500.0,0.00024931,2]
[391635693,1760712659131,-500.0,0.00024931,2]
[391635694,1760712659141,-500.0,0.00024931,2]
[391635695,1760712659151,-500.0,0.00024931,2]
[391635696,1760712659160,-207.99416182,0.00024931,2]
[391635697,1760712659170,-151.0,0.00024931,7]
[391635698,1760712659180,-151.0,0.00024931,7]
[391635699,1760712659190,-170.4958876,0.00024931,2]
[391635700,1760712659200,-500.0,0.00024931,2]
[391635701,1760712659210,-151.0,0.00024931,7]
[391635702,1760712659221,-500.0,0.00024931,2]
[391635703,1760712659231,-500.0,0.00024931,2]
[391635704,1760712659241,-264.49504754,0.00024931,2]
[391635705,1760712659251,-440.22995277,0.00024931,2]
[391635706,1760712659260,-465.0920923,0.00024931,2]
[391635707,1760712659269,-151.0,0.00024931,7]
[391635708,1760712659278,-151.0,0.00024931,7]
[391635709,1760712659288,-500.0,0.00024931,2]
[391635710,1760712659298,-151.0,0.00024931,7]
[391635711,1760712659307,-151.0,0.00024931,7]
[391635712,1760712659318,-500.0,0.00024931,2]
[391635713,1760712659328,-151.0,0.00024931,7]
[391635714,1760712659341,-151.0,0.00024931,7]
[391635715,1760712659352,-505.59,0.00024931,2]
[391635716,1760712659362,-501.31415979,0.00024931,2]
[391635717,1760712659371,-500.0,0.00024931,2]
[391635718,1760712659382,-633.82519856,0.00024931,2]
[391635719,1760712659391,-166.08382671,0.00024931,2]
[391635720,1760712659401,-500.0,0.00024931,2]
[391635721,1760712659411,-500.0,0.00024931,2]
[391635722,1760712659421,-377.92538499,0.00024931,2]
[391635723,1760712659431,-358.21655629,0.00024931,2]
[391635724,1760712659441,-562.09916915,0.00024931,2]
[391635725,1760712659451,-501.13326008,0.00024931,2]
[391635726,1760712659461,-423.01364309,0.00024931,2]
[391635727,1760712659471,-179.60519446,0.00024931,2]
[391635728,1760712659481,-500.0,0.00024931,2]
[391635729,1760712659491,-500.5830008,0.00024931,2]
[391635730,1760712659500,-500.0,0.00024931,2]
[391635731,1760712659511,-501.22039564,0.00024931,2]
[391635732,1760712659520,-500.0,0.00024931,2]
[391635733,1760712659530,-500.27939682,0.00024931,2]
[391635734,1760712659540,-500.0,0.00024931,2]
[391635735,1760712659550,-500.0,0.00024931,2]
[391635736,1760712659559,-500.0,0.00024931,2]
[391635737,1760712659569,-500.0,0.00024931,2]
[391635738,1760712659579,-500.0,0.00024931,2]
[391635739,1760712659591,-500.0,0.00024931,2]
[391635740,1760712659601,-500.0,0.00024931,2]
[391635741,1760712659611,-500.0,0.00024931,2]
[391635742,1760712659624,-500.68564629,0.00024931,2]
[391635743,1760712659633,-500.0,0.00024931,2]
[391635744,1760712659643,-500.0,0.00024931,2]
[391635745,1760712659652,-350.34801519,0.00024931,2]
[391635746,1760712659663,-500.67218065,0.00024931,2]
[391635747,1760712659672,-837.59,0.00024931,2]
[391635748,1760712659682,-500.0,0.00024931,2]
[391635749,1760712659692,-500.0,0.00024931,2]
[391635750,1760712659703,-500.0,0.00024931,2]
[391635751,1760712659712,-500.16561391,0.00024931,2]
[391635752,1760712659722,-500.0,0.00024931,2]
[391635753,1760712659731,-500.0,0.00024931,2]
[391635754,1760712659741,-500.0,0.00024931,2]
[391635755,1760712659751,-500.0,0.00024931,2]
[391635756,1760712659761,-500.0,0.00024931,2]
[391635757,1760712659771,-500.0,0.00024931,2]
[391635758,1760712659781,-450.29952507,0.00024931,2]
[391635759,1760712659790,-269.3388844,0.00024931,2]
[391635760,1760712659800,-2355.17,0.00024931,2]
[391635761,1760712659810,-500.0,0.00024931,2]
[391635762,1760712659819,-500.0,0.00024931,2]
[391635763,1760712659829,-581.64417585,0.00024931,2]
[391635764,1760712659841,-500.0,0.00024931,2]
[391635765,1760712659851,-500.40955247,0.00024931,2]
[391635766,1760712659861,-500.0,0.00024931,2]
[391635767,1760712659871,-500.0,0.00024931,2]
[391635768,1760712659881,-500.0,0.00024931,2]
[391635769,1760712659891,-500.0,0.00024931,2]
[391635770,1760712659901,-556.68161543,0.00024931,2]
[391635771,1760712659911,-500.0,0.00024931,2]
[391635772,1760712659920,-500.0,0.00024931,2]
[391635773,1760712659930,-500.64104543,0.00024931,2]
[391635774,1760712659940,-500.0,0.00024931,2]
[391635775,1760712659950,-644.11528701,0.00024931,2]
[391635776,1760712659960,-500.0,0.00024931,2]
[391635777,1760712659970,-513.36,0.00024931,2]
[391635778,1760712659980,-500.0,0.00024931,2]
[391635779,1760712659990,-500.0,0.00024931,2]
[391635780,1760712660000,-500.0,0.00024931,2]
[391635781,1760712660010,-500.52133293,0.00024931,2]
[391635782,1760712660019,-500.0,0.00024931,2]
[391635783,1760712660030,-500.0,0.00024931,2]
[391635784,1760712660040,-500.0,0.00024931,2]
[391635785,1760712660050,-248.45896978,0.00024931,2]
[391635786,1760712660060,-500.0,0.00024931,2]
[391635787,1760712660071,-500.0,0.00024931,2]
[391635788,1760712660081,-500.0,0.00024931,2]
[391635789,1760712660093,-500.0,0.00024931,2]
[391635790,1760712660103,-1192.44,0.00024931,2]
[391635791,1760712660113,-500.0,0.00024931,2]
[391635792,1760712660123,-654.23,0.00024931,2]
[391635793,1760712660134,-500.0,0.00024931,2]
[391635794,1760712660143,-500.0,0.00024931,2]
[391635795,1760712660153,-500.0,0.00024931,2]
[391635796,1760712660163,-2969.48,0.00024931,2]
[391635797,1760712660173,-423.55548623,0.00024931,2]
[391635798,1760712660183,-500.0,0.00024931,2]
[391635799,1760712660193,-500.0,0.00024931,2]
[391635800,1760712660203,-498.8926823,0.00024931,2]
[391635801,1760712660213,-500.0,0.00024931,2]
[391635802,1760712660223,-500.17,0.00024931,2]
[391635803,1760712660233,-1595.99,0.00024931,2]
[391635804,1760712660243,-500.0,0.00024931,2]
[391635805,1760712660252,-500.0,0.00024931,2]
[391635806,1760712660262,-2220.63,0.00024931,2]
[391635807,1760712660272,-500.0,0.00024931,2]
[391635808,1760712660283,-500.0,0.00024931,2]
[391635809,1760712660293,-500.0,0.00024931,2]
[391635810,1760712660303,-500.0,0.00024931,2]
[391635811,1760712660312,-500.36324121,0.00024931,2]
[391635812,1760712660322,-500.0,0.00024931,2]
[391635813,1760712660333,-500.0,0.00024931,2]
[391635814,1760712660345,-500.0,0.00024931,2]
[391635815,1760712660355,-500.0,0.00024931,2]
[391635816,1760712660365,-500.0,0.00024931,2]
[391635817,1760712660375,-500.0,0.00024931,2]
[391635818,1760712660385,-554.04,0.00024931,2]
[391635819,1760712660396,-500.0,0.00024931,2]
[391635820,1760712660406,-500.0,0.00024931,2]
[391635821,1760712660416,-500.0,0.00024931,2]
[391635822,1760712660426,-619.82,0.00024931,2]
[391635823,1760712660436,-460.64784652,0.00024931,2]
[391635824,1760712660446,-500.0,0.00024931,2]
[391635825,1760712660456,-500.5600015,0.00024931,2]
[391635826,1760712660466,-950.66,0.00024931,2]
[391635827,1760712660475,-500.0,0.00024931,2]
[391635828,1760712660486,-500.0,0.00024931,2]
[391635829,1760712660722,-500.69435819,0.00024931,2]
[391635830,1760712660732,-500.0,0.00024931,2]
[391635831,1760712660742,-500.0,0.00024931,2]
[391635832,1760712660751,-1855.6,0.00024931,2]
[391635833,1760712660761,-500.0,0.00024931,2]
[391635834,1760712660770,-722.3,0.00024931,2]
[391635835,1760712660780,-500.0,0.00024931,2]
[391635836,1760712660789,-502.10704341,0.00024931,2]
[391635837,1760712660799,-500.0,0.00024931,2]
[391635838,1760712660808,-493.06149203,0.00024931,2]
[391635839,1760712660818,-500.0,0.00024931,2]
[391635840,1760712660827,-500.72137853,0.00024931,2]
[391635841,1760712660840,-500.0,0.00024931,2]
[391635842,1760712660849,-500.0,0.00024931,2]
[391635843,1760712660859,-500.0,0.00024931,2]
[391635844,1760712660868,-500.0,0.00024931,2]
[391635845,1760712660878,-500.0,0.00024931,2]
[391635846,1760712660888,-1437.69,0.00024931,2]
[391635847,1760712660899,-205.02052136,0.00024931,2]
[391635848,1760712660908,-2212.04,0.00024931,2]
[391635849,1760712660918,-500.0,0.00024931,2]
[391635850,1760712660927,-592.51709112,0.00024931,2]
[391635851,1760712660936,-500.0,0.00024931,2]
[391635852,1760712660946,-151.0,0.00024931,7]
[391635853,1760712660955,-500.0,0.00024931,2]
[391635854,1760712660965,-500.0,0.00024931,2]
[391635855,1760712660975,-488.06581592,0.00024931,2]
[391635856,1760712660984,-347.2512478,0.00024931,2]
[391635857,1760712660993,-1120.11,0.00024931,2]
[391635858,1760712661002,-975.26428613,0.00024931,2]
[391635859,1760712661044,-500.0,0.00024657,2]
[391635860,1760712661054,-151.0,0.000249,7]
[391635861,1760712661063,-891.95128787,0.00024931,2]
[391635862,1760712661073,-151.0,0.00024931,7]
[391635863,1760712661083,-548.13945047,0.00024931,2]
[391635864,1760712661367,-500.0,0.00024657,2]
[391635865,1760712661378,-500.0,0.00024657,2]
[391635866,1760712661387,-276.490798,0.00024657,7]
[391635867,1760712661397,-1140.77866253,0.00024931,2]
[391635868,1760712661407,-500.0,0.00024931,2]
[391635869,1760712661417,-646.93746779,0.00024931,2]
[391635870,1760712661427,-953.148162,0.00024931,2]
[391635871,1760712661436,-1942.01392689,0.00024931,2]
[391635872,1760712661448,-2237.10664395,0.00024931,2]
[391635873,1760712661459,-4340.32243442,0.00024931,2]
[391635874,1760712661471,-4368.65980068,0.00024931,2]
[391635875,1760712661482,-4128.63986883,0.00024931,2]
[391635876,1760712661494,-4432.26839026,0.00024931,2]
[391635877,1760712661507,-12281.83887251,0.00024931,2]
[391635878,1760712661519,-1363.68834929,0.00024931,2]
[391635879,1760712661535,-151.0,0.00018904,2]
[391635880,1760712661545,-13778.6127768,0.00024931,2]
[391635881,1760712661556,-3829.98099585,0.00024931,2]
[391635882,1760712661567,-7249.24528713,0.00024931,2]
[391635883,1760712661579,-3897.88321239,0.00024931,2]
[391635884,1760712661592,-500.0,0.00024931,2]
[391635885,1760712661602,-500.0,0.00024931,2]
[391635886,1760712661616,-15834.36629025,0.00024931,2]
[391635887,1760712661630,-20901.57183675,0.00024931,2]
[391635888,1760712661641,-151.0,0.00024931,7]
[391635889,1760712661652,-500.0,0.00024931,2]
[391635890,1760712661663,-500.0,0.00024931,2]
[391635891,1760712661673,-363.42816325,0.00024931,2]
[391635892,1760712661700,-151.0,0.00018904,2]
[391635893,1760712661711,-136.57183675,0.00024931,2]
[391635894,1760712661722,-255.08291,0.00024931,7]
[391635895,1760712661733,-500.0,0.00024931,2]
[391635896,1760712661746,-500.0,0.00024931,2]
[391635897,1760712661757,-500.0,0.00024931,2]
[391635898,1760712661767,-541.78755383,0.00024931,2]
[391635899,1760712661778,-855.57508899,0.00024931,2]
[391635900,1760712661791,-352.67659998,0.00024931,2]
[391635901,1760712661803,-28380.25919703,0.00024931,2]
[391635902,1760712661814,-500.0,0.00024931,2]
[391635903,1760712661824,-226.64519572,0.00024931,2]
[391635904,1760712661834,-384.96139111,0.00024931,2]
[391635905,1760712662056,-500.0,0.00024931,2]
[391635906,1760712662066,-500.0,0.00024931,2]
[391635907,1760712662076,-500.0,0.00024931,2]
[391635908,1760712662088,-500.0,0.00024931,2]
[391635909,1760712662100,-500.0,0.00024931,2]
[391635910,1760712662110,-455.09216822,0.00024931,2]
[391635911,1760712662120,-500.0,0.00024931,2]
[391635912,1760712662131,-500.0,0.00024931,2]
[391635913,1760712662140,-854.16,0.00024931,2]
[391635914,1760712662150,-500.0,0.00024931,2]
[391635915,1760712662160,-151.0,0.00024931,7]
[391635916,1760712662170,-500.0,0.00024931,2]
[391635917,1760712662181,-151.0,0.00024931,7]
[391635918,1760712662191,-500.0,0.00024931,2]
[391635919,1760712662202,-500.0,0.00024931,2]
[391635920,1760712662212,-632.58,0.00024931,2]
[391635921,1760712662222,-500.0,0.00024931,2]
[391635922,1760712662232,-500.0,0.00024931,2]
[391635923,1760712662242,-500.0,0.00024931,2]
[391635924,1760712662258,-530.07368561,0.00024931,2]
[391635925,1760712662267,-500.0,0.00024931,2]
[391635926,1760712662277,-562.65848733,0.00024931,2]
[391635927,1760712662287,-500.0,0.00024931,2]
[391635928,1760712662297,-500.0,0.00024931,2]
[391635929,1760712662306,-501.53232657,0.00024931,2]
[391635930,1760712662316,-500.0,0.00024931,2]
[391635931,1760712662326,-500.0,0.00024931,2]
[391635932,1760712662336,-500.0,0.00024931,2]
[391635933,1760712662349,-500.0,0.00024931,2]
[391635934,1760712662358,-348.91751038,0.00024931,2]
[391635935,1760712662368,-500.0,0.00024931,2]
[391635936,1760712662379,-500.0,0.00024931,2]
[391635937,1760712662390,-500.0,0.00024931,2]
[391635938,1760712662399,-500.0,0.00024931,2]
[391635939,1760712662410,-500.0,0.00024931,2]
[391635940,1760712662419,-500.0,0.00024931,2]
[391635941,1760712662429,-224.31412705,0.00024931,2]
[391635942,1760712662438,-500.0,0.00024931,2]
[391635943,1760712662448,-500.0,0.00024931,2]
[391635944,1760712662457,-500.0,0.00024931,2]
[391635945,1760712662467,-500.0,0.00024931,2]
[391635946,1760712662477,-500.0,0.00024931,2]
[391635947,1760712662487,-511.91079126,0.00024931,2]
[391635948,1760712662497,-500.0,0.00024931,2]
[391635949,1760712662507,-500.0,0.00024931,2]
[391635950,1760712662516,-500.0,0.00024931,2]
[391635951,1760712662526,-500.0,0.00024931,2]
[391635952,1760712662535,-500.0,0.00024931,2]
[391635953,1760712662546,-255.50848305,0.00024931,2]
[391635954,1760712662556,-500.0,0.00024931,2]
[391635955,1760712662566,-500.0,0.00024931,2]
[391635956,1760712662576,-500.0,0.00024931,2]
[391635957,1760712662591,-500.0,0.00024931,2]
[391635958,1760712662600,-500.0,0.00024931,2]
[391635959,1760712662611,-438.8323057,0.00024931,2]
[391635960,1760712662624,-518.87885304,0.00024931,2]
[391635961,1760712662634,-870.27,0.00024931,2]
[391635962,1760712662644,-591.96289258,0.00024931,2]
[391635963,1760712662654,-500.0,0.00024931,2]
[391635964,1760712662664,-278.23387077,0.00024931,2]
[391635965,1760712662675,-501.7286333,0.00024931,2]
[391635966,1760712662685,-500.58943937,0.00024931,2]
[391635967,1760712662700,-500.0,0.00024931,2]
[391635968,1760712662710,-500.0,0.00024931,2]
[391635969,1760712662720,-500.0,0.00024931,2]
[391635970,1760712662730,-500.0,0.00024931,2]
[391635971,1760712662739,-500.0,0.00024931,2]
[391635972,1760712662748,-500.0,0.00024931,2]
[391635973,1760712662758,-255.46259619,0.00024931,2]
[391635974,1760712662767,-261.59474105,0.00024931,2]
[391635975,1760712662777,-500.0,0.00024931,2]
[391635976,1760712662787,-500.0,0.00024931,2]
[391635977,1760712662796,-500.0,0.00024931,2]
[391635978,1760712662805,-500.0,0.00024931,2]
[391635979,1760712662815,-500.0,0.00024931,2]
[391635980,1760712662824,-500.0,0.00024931,2]
[391635981,1760712662833,-265.59601219,0.00024931,2]
[391635982,1760712662850,-500.0,0.00024931,2]
[391635983,1760712662859,-500.0,0.00024931,2]
[391635984,1760712662869,-333.13625527,0.00024931,2]
[391635985,1760712662879,-623.04305269,0.00024931,2]
[391635986,1760712662888,-500.0,0.00024931,2]
[391635987,1760712662898,-500.0,0.00024931,2]
[391635988,1760712662907,-558.90681648,0.00024931,2]
[391635989,1760712662917,-440.40742799,0.00024931,2]
[391635990,1760712662927,-500.0,0.00024931,2]
[391635991,1760712662936,-500.0,0.00024931,2]
[391635992,1760712662946,-500.0,0.00024931,2]
[391635993,1760712662956,-467.61886934,0.00024931,2]
[391635994,1760712662966,-339.98304576,0.00024931,2]
[391635995,1760712662976,-500.0,0.00024931,2]
[391635996,1760712662986,-420.52243314,0.00024931,2]
[391635997,1760712662995,-500.0,0.00024931,2]
[391635998,1760712663004,-1000.0,0.00024931,2]
[391635999,1760712663013,-500.0,0.00024931,2]
[391636000,1760712663023,-735.48,0.00024931,2]
[391636001,1760712663033,-500.0,0.00024931,2]
[391636002,1760712663042,-583.1469107,0.00024931,2]